Cogmind - Beta 14 @@@ ROGUE MODE // 2024.09.15 @ 17:44:06 Player: star Result: Destroyed by L-31 Rogue with Katana Performance ------------- Evolutions (2) 1000 Regions Visited (7) 1400 Robots Destroyed (64) 320 Value Destroyed (2695) 2695 Prototype IDs (5) 100 Alien Tech Used (0) 0 Bonus (1037) 1037 TOTAL SCORE: 6552 Bonus ------- High Alert Combat Kills 337 Entered Garrisons 200 Used RIF Installer 500 Cogmind --------- Core Integrity 0/550 Matter 300/300 Energy 70/100 System Corruption 11% Temperature Cool (62) Movement Core (300) Ox5 Location -8/Materials Parts ------- > --- POWER (1) -------- (None) > --- PROPULSION (2) --- (None) > --- UTILITY (6) ------ Small Storage Unit Makeshift Transmission Jammer > --- WEAPON (2) ------- Heavy Particle Gun Heavy Particle Gun > --- INVENTORY (8) ---- Deuterium Engine Cryofiber Web Improved Cooling System Armor Integrity Analyzer Makeshift Transmission Jammer Makeshift Cloaking Device Relay Coupler [NC] (26) Precision Grenade Launcher Peak State ------------ > --- POWER ------------ Deuterium Engine > --- PROPULSION ------- Carbon-fiber Leg Carbon-fiber Leg > --- UTILITY ---------- Small Storage Unit Targeting Computer Makeshift Transmission Jammer Improved Weapon Shielding Shield Generator System Shield > --- WEAPON ----------- Advanced Assault Cannon Advanced Assault Cannon > --- INVENTORY -------- Improved Ion Engine Cryofiber Web Makeshift Transmission Jammer Makeshift Cloaking Device Shock Rifle Gauss Rifle Precision Grenade Launcher Precision Grenade Launcher [Rating: 35] Favorites ----------- Power Improved Ion Engine Engine Improved Ion Engine Power Core Light Nuclear Core Propulsion Aluminum Leg Leg Aluminum Leg Flight Unit Surge Thruster Utility Small Storage Unit Device Makeshift Transmission Jammer Storage Small Storage Unit Processor Targeting Computer Hackware System Shield Protection Light Armor Plating Weapon Particle Gun Energy Gun Particle Gun Ballistic Gun High-powered Shotgun Ballistic Cannon Advanced Assault Cannon Launcher Precision Grenade Launcher Slashing Weapon Blade Saw Build | -11 -10 -10 -10 -9 -8 -8 -8 ------- Run | Yrd Mat Min Exi Min Mat Gar Mat Slots Evolved 4 | . . . . . 4 . . Power . | . . . . . . . . Propulsion . | . . . . . . . . Utility 4 | . . . . . 4 . . Weapon . | . . . . . . . . Parts Attached 84 | 6 12 . 7 . 21 29 9 Power 7 | . 2 . . . 2 3 . Engine 6 | . 2 . . . 2 2 . Core 1 | . . . . . . 1 . Reactor . | . . . . . . . . Propulsion 20 | 2 4 . 1 . 4 7 2 Treads . | . . . . . . . . Leg 19 | 2 4 . 1 . 4 6 2 Wheel . | . . . . . . . . Hover . | . . . . . . . . Flight 1 | . . . . . . 1 . Utility 22 | 1 1 . 4 . 6 7 3 Device 7 | . . . . . 3 3 1 Storage 5 | 1 . . 4 . . . . Processor 2 | . 1 . . . . 1 . Hackware 2 | . . . . . 1 1 . Protection 6 | . . . . . 2 2 2 Artifact . | . . . . . . . . Weapon 35 | 3 5 . 2 . 9 12 4 Energy Gun 14 | 3 3 . . . . 6 2 Energy Cannon . | . . . . . . . . Ballistic Gun 12 | . 2 . 2 . 6 1 1 Ballistic Cannon 2 | . . . . . 2 . . Launcher 6 | . . . . . 1 4 1 Special Weapon . | . . . . . . . . Impact Weapon . | . . . . . . . . Slashing Weapon 1 | . . . . . . 1 . Piercing Weapon . | . . . . . . . . Special Melee Weapon . | . . . . . . . . Unidentified Prototypes 3 | . . . . . 1 . 2 Corrupted Parts 1 | . . . . . . 1 . System Corruption 1 | . . . . . . 1 . Parts Lost 19 | . . . . . . 12 7 Power 1 | . . . . . . 1 . Propulsion 6 | . . . . . . 4 2 Utility 7 | . . . . . . 3 4 Weapon 5 | . . . . . . 4 1 Highest Loss Streak 7 | . . . . . . 3 7 To Critical Strikes 1 | . . . . . . . 1 Average Slot Usage (%) 95 | . 85 100 100 100 99 94 95 Engine 7 | . 2 14 14 14 9 6 8 Core 1 | . . . . . . 2 . Leg 17 | . 27 28 28 28 18 13 17 Device 9 | . . . . . 21 12 7 Storage 10 | . 14 14 14 14 9 9 9 Processor 13 | . 13 14 14 14 9 15 10 Hackware 10 | . . . . . 8 14 16 Protection 2 | . . . . . 4 1 7 Energy Gun 7 | . 22 . . . . 8 9 Ballistic Gun 10 | . 3 28 28 28 17 5 8 Launcher 1 | . . . . . . 3 . Peak Build Rating 35 | 5 11 11 16 16 35 34 34 Average Rating 25 | 3 7 11 14 16 31 29 31 On Entrance 15 | . 5 11 11 16 16 33 30 Naked Turns . | . . . . . . . . Heaviest Build 35 | 9 18 18 19 19 35 30 31 Greatest Support 32 | 20 20 20 25 25 32 32 25 Greatest Overweight (x) 8 | . . . . . 1 8 1 Average Overweight (x) . | . . . . . . 1 . Largest Inventory Capacity 8 | 8 8 8 8 8 8 8 8 Average Capacity 7 | 6 8 8 7 8 8 8 8 Most Carried 8 | . 8 8 8 8 8 8 8 Average Carried 7 | . 3 7 7 8 7 7 7 Final Capacity 8 | 8 8 8 8 8 8 8 8 Final Carried 8 | . 8 8 8 8 8 8 8 Class Distribution -------------------- 57% | Mutant 38% | Scavenger-Mutant 4% | Infiltrator-Mutant Dominant Class ---------------- Mutant | -10/Materials Mutant | -10/Mines Mutant | -10/Exiles Mutant | -9/Mines Mutant | -8/Materials Scavenger-Mutant | -8/Garrison Mutant | -8/Materials Resources | -11 -10 -10 -10 -9 -8 -8 -8 ----------- Run | Yrd Mat Min Exi Min Mat Gar Mat Matter Collected 2233 | 260 168 8 174 58 261 1036 268 Remotely . | . . . . . . . . Salvage Created 2371 | . 560 24 171 59 261 1098 198 Parts 133 | . 26 3 8 7 19 58 12 Haulers Intercepted 3 | . 1 . . . 1 . 1 Recyclers Shooed 1 | . . . . . 1 . . Parts Field Recycled . | . . . . . . . . Retrieved Matter . | . . . . . . . . Parts Self-Destructed . | . . . . . . . . Prevented . | . . . . . . . . Kills | -11 -10 -10 -10 -9 -8 -8 -8 ------- Run | Yrd Mat Min Exi Min Mat Gar Mat Combat Hostiles Destroyed 58 | . 9 . 2 4 7 33 3 Guns 54 | . 8 . 2 4 7 30 3 AOE 3 | . 1 . . . . 2 . Classes Destroyed 14 | . 4 1 . 1 2 6 . Tunneler 1 | . . 1 . . . . . Hauler 3 | . 1 . . . 1 . 1 Recycler 1 | . 1 . . . . . . Watcher 1 | . 1 . . . . . . Swarmer 6 | . . . . 4 2 . . Cutter 3 | . . . . . . 3 . Saboteur 3 | . . . . . . 3 . Grunt 22 | . 9 . 2 . 1 9 1 Brawler 4 | . . . . . . 4 . Duelist 7 | . . . . . . 6 1 Sentry 8 | . . . . . 3 4 1 Specialist 3 | . . . . . . 3 . Hunter 1 | . . . . . 1 . . Programmer 1 | . . . . . . 1 . Best Kill Streak 5 | . 5 1 1 3 1 4 2 Combat Bots Only 4 | . 4 . 1 3 1 4 1 Max Kills in Single Turn 2 | . 2 1 1 1 1 2 1 Gunslinging . | . . . . . . . . Exploded 1 | . 1 . . . . 1 . Melee . | . . . . . . . . Uniques/NPCs Destroyed . | . . . . . . . . Combat | -11 -10 -10 -10 -9 -8 -8 -8 -------- Run | Yrd Mat Min Exi Min Mat Gar Mat Hostile Shots Fired 274 | . 25 . . 17 44 125 63 Missed 75 | . 9 . . 4 14 37 11 Damage Taken 3226 | . 361 . . 90 308 1510 957 Core 593 | . 26 . . 8 94 245 220 Absorbed by Shields 224 | . . . . . 116 108 . Redirected to Shielding 102 | . . . . . . 102 . Regen/Repaired (Parts) 256 | . 167 . . . . . 89 Core Remaining (%) 93 | 100 . . . 86 . . . Volleys Fired 200 | . 30 1 19 9 26 100 15 Largest 2 | . 2 2 2 2 2 2 2 Hottest 130 | . 105 46 51 51 53 130 110 Shots Fired 394 | . 60 2 38 18 51 197 28 Gun 383 | . 60 2 38 18 51 186 28 Cannon . | . . . . . . . . Launcher 11 | . . . . . . 11 . Special . | . . . . . . . . Kinetic 270 | . 10 2 38 18 51 138 13 Thermal 75 | . 25 . . . . 35 15 Explosive 11 | . . . . . . 11 . Electromagnetic 38 | . 25 . . . . 13 . Robot Hit Streak 24 | . 13 2 7 8 15 24 8 Robot Miss Streak 5 | . 2 . 1 3 4 5 3 Penetration Max 1 | . . . . . . . 1 Secondary Targets 4 | . . . . . . 4 . Max Gunslinging Chain 1 | . . . . . . 1 . Shots Hit Robots 262 | . 39 1 23 9 39 131 20 Core Hits 129 | . 20 1 9 4 16 72 7 Critical Kills 1 | . . . . . 1 . . Critical Parts Destroyed 1 | . . . . . . 1 . Critical Strikes 7 | . 1 . . . 1 5 . Burn 5 | . 1 . . . . 4 . Destroy 2 | . . . . . 1 1 . Melee Attacks 4 | . . . . . . 4 . Impact . | . . . . . . . . Slashing 4 | . . . . . . 4 . Piercing . | . . . . . . . . Sneak Attacks . | . . . . . . . . Combat Hostiles . | . . . . . . . . Follow-up Attacks . | . . . . . . . . Damage Inflicted 5328 | . 699 14 328 164 723 3016 384 Guns 4827 | . 553 14 328 157 713 2683 379 Cannons . | . . . . . . . . Explosions 478 | . 145 . . . . 333 . Melee . | . . . . . . . . Ramming 23 | . 1 . . 7 10 . 5 Kinetic 3805 | . 101 14 328 157 713 2256 236 Thermal 857 | . 408 . . . . 306 143 Explosive 333 | . . . . . . 333 . Electromagnetic 310 | . 189 . . . . 121 . Impact . | . . . . . . . . Slashing . | . . . . . . . . Piercing . | . . . . . . . . Highest Corruption 11 | . 2 2 2 2 . 2 11 Average Corruption 1 | . 2 2 2 2 . 1 2 Corruption Purged . | . . . . . . . . Corruption Blocked . | . . . . . . . . Effects 63 | . 2 . 11 3 . 41 6 Message Errors 18 | . . . 3 . . 12 3 Matter Fused 19 | . 1 . 2 1 . 15 . Heat Flow Errors 5 | . 1 . 1 1 . 1 1 Energy Discharges 7 | . . . 1 1 . 5 . Parts Fused 1 | . . . . . . 1 . Data Loss (minor) 6 | . . . 3 . . 3 . Data Loss (major) 3 | . . . 1 . . 1 1 Misfires 3 | . . . . . . 3 . Alerts 1 | . . . . . . . 1 Overload Shots . | . . . . . . . . Overflow Damage . | . . . . . . . . Projectiles . | . . . . . . . . Explosions . | . . . . . . . . Melee . | . . . . . . . . Knockbacks . | . . . . . . . . Impact . | . . . . . . . . Kinetic . | . . . . . . . . Secondary . | . . . . . . . . Self-Inflicted Damage 225 | . 73 . . . . 152 . Shots 6 | . 2 . . . . 4 . Rammed . | . . . . . . . . Targets Rammed 7 | . 1 . . 2 3 . 1 Kicked 7 | . 1 . . 2 3 . 1 Crushed . | . . . . . . . . Highest Temperature 280 | . 211 8 179 280 13 244 225 Average Temperature 62 | . 60 6 27 72 5 60 99 Received Heat Transfer 1187 | . 117 . . . 98 621 351 Siege Activations . | . . . . . . . . Robots Corrupted . | . . . . . . . . Combat Hostiles . | . . . . . . . . Parts Fried . | . . . . . . . . Impact Corruptions . | . . . . . . . . Robots Melted 1 | . . . . . . 1 . Combat Hostiles 1 | . . . . . . 1 . Parts Melted 3 | . 1 . . . . 2 . Heat Transferred 2162 | . 890 . . . . 939 333 Parts Sabotaged . | . . . . . . . . Parts Stolen . | . . . . . . . . Parts Stripped . | . . . . . . . . Power Chain Reactions 2 | . 2 . . . . . . Alert | -11 -10 -10 -10 -9 -8 -8 -8 ------- Run | Yrd Mat Min Exi Min Mat Gar Mat Peak Influence 2386 | . 199 65 . 135 262 2386 1264 Initial 1162 | . . 60 . . 52 134 1162 Average 888 | . 112 60 . 66 146 1219 1188 Maximum Alert Level 5 | . . . . . 1 5 4 Low Security (%) 29 | 100 100 100 . 100 79 3 . Level 1 5 | . . . . . 20 5 . Level 2 8 | . . . . . . 13 . Level 3 17 | . . . . . . 25 13 Level 4 21 | . . . . . . 23 86 Level 5 17 | . . . . . . 28 . High Security . | . . . . . . . . Max Security . | . . . . . . . . Squads Dispatched 3 | . 1 . . . . . 2 Investigation . | . . . . . . . . Extermination . | . . . . . . . . Reinforcement 1 | . 1 . . . . . . Assault 1 | . . . . . . . 1 Garrison 1 | . . . . . . . 1 Intercept . | . . . . . . . . Searches Triggered . | . . . . . . . . Construction Impeded . | . . . . . . . . Haulers Reinforced . | . . . . . . . . Active Scanning Responses . | . . . . . . . . Cargo Convoy Interrupts . | . . . . . . . . Stealth | -11 -10 -10 -10 -9 -8 -8 -8 --------- Run | Yrd Mat Min Exi Min Mat Gar Mat Distress Signals 3 | . 2 . . . . . 1 Communications Jammed 31 | . . . . . 31 . . Distress Signals 31 | . . . . . 31 . . Times Spotted 72 | . 18 . . 5 12 24 13 Peak Tracking Total 9 | . 4 . . 3 3 3 9 Tactical Retreats 6 | . 2 . . 1 2 . 1 Traps | -11 -10 -10 -10 -9 -8 -8 -8 ------- Run | Yrd Mat Min Exi Min Mat Gar Mat Traps Triggered 10 | . 3 . . . . 7 . Indirectly . | . . . . . . . . Trap Hack Attempts . | . . . . . . . . Triggered . | . . . . . . . . Disarmed . | . . . . . . . . Reprogrammed . | . . . . . . . . Reused . | . . . . . . . . Traps Extracted . | . . . . . . . . Installed . | . . . . . . . . Triggered . | . . . . . . . . Machines | -11 -10 -10 -10 -9 -8 -8 -8 ---------- Run | Yrd Mat Min Exi Min Mat Gar Mat Machines Disabled 6 | . 2 . . . . 3 1 Max in Single Turn 1 | . 1 . . . . 1 1 Garrison Relay 2 | . . . . . . 2 . Machines Repaired . | . . . . . . . . Machines Dismantled . | . . . . . . . . Machines Sabotaged . | . . . . . . . . Overloaded Fab Kills . | . . . . . . . . Hacking | -11 -10 -10 -10 -9 -8 -8 -8 --------- Run | Yrd Mat Min Exi Min Mat Gar Mat Machines Accessed 7 | . 2 . . . 1 1 3 Terminals 2 | . . . . . . 1 1 Fabricators . | . . . . . . . . Repair Stations 2 | . 1 . . . . . 1 Recycling Units 1 | . 1 . . . . . . Scanalyzers 1 | . . . . . . . 1 Garrison Access 1 | . . . . . 1 . . Total Hacks 31 | . 7 . . . 2 4 18 Successful 18 | . 7 . . . 1 . 10 Failed 13 | . . . . . 1 4 8 Catastrophic . | . . . . . . . . Database Lockouts . | . . . . . . . . Manual . | . . . . . . . . Terminals 8 | . . . . . . 4 4 Fabricators . | . . . . . . . . Repair Stations 16 | . 6 . . . . . 10 Recycling Units 1 | . 1 . . . . . . Scanalyzers 4 | . . . . . . . 4 Garrison Access 2 | . . . . . 2 . . Terminal Hacks 2 | . . . . . . . 2 Record 1 | . . . . . . . 1 Prototype ID Bank 1 | . . . . . . . 1 Fabricator Hacks . | . . . . . . . . Repair Station Hacks 12 | . 6 . . . . . 6 Scan Component 6 | . 3 . . . . . 3 Repair 6 | . 3 . . . . . 3 Recycling Unit Hacks 1 | . 1 . . . . . . Report Inventory 1 | . 1 . . . . . . Scanalyzer 2 | . . . . . . . 2 Insert Component 1 | . . . . . . . 1 Analyze 1 | . . . . . . . 1 Garrison Access Hacks 1 | . . . . . 1 . . Unlock Access 1 | . . . . . 1 . . Unauthorized Hacks . | . . . . . . . . Terminals . | . . . . . . . . Fabricators . | . . . . . . . . Repair Stations . | . . . . . . . . Recycling Units . | . . . . . . . . Scanalyzers . | . . . . . . . . Garrison Access . | . . . . . . . . Data Cores Recovered . | . . . . . . . . Used . | . . . . . . . . Hacking Detections 4 | . 1 . . . . 1 2 Full Trace Events 1 | . . . . . . 1 . Feedback Events . | . . . . . . . . Feedback Blocked . | . . . . . . . . Robot Schematics Acquired . | . . . . . . . . Robots Built . | . . . . . . . . Authchips . | . . . . . . . . Time . | . . . . . . . . Total Robot Build Rating . | . . . . . . . . Part Schematics Acquired 1 | . . . . . . . 1 Parts Built . | . . . . . . . . Authchips . | . . . . . . . . Time . | . . . . . . . . Total Part Build Rating . | . . . . . . . . Parts Repaired 6 | . 3 . . . . . 3 Time 222 | . 84 . . . . . 138 Parts Recycled . | . . . . . . . . Recycled Matter . | . . . . . . . . Retrieved Matter . | . . . . . . . . Retrieved Components . | . . . . . . . . Parts Scanalyzed 1 | . . . . . . . 1 Part Schematics Acquired 1 | . . . . . . . 1 Parts Damaged . | . . . . . . . . Bothacking | -11 -10 -10 -10 -9 -8 -8 -8 ------------ Run | Yrd Mat Min Exi Min Mat Gar Mat Used RIF Installer 1 | . . . . . . 1 . Robots Hacked . | . . . . . . . . Non-combat . | . . . . . . . . Combat . | . . . . . . . . Robot Hacks Applied . | . . . . . . . . Relay Couplers Released 10 | . . . . . . 10 . Machine Destruction 7 | . . . . . . 7 . Programmers 3 | . . . . . . 3 . Attached 1 | . . . . . . 1 . Fabnet Peak Effective % . | . . . . . . . . Robots Rewired . | . . . . . . . . Allies Hacked . | . . . . . . . . Hacks Repelled . | . . . . . . . . Allies | -11 -10 -10 -10 -9 -8 -8 -8 -------- Run | Yrd Mat Min Exi Min Mat Gar Mat Total Allies . | . . . . . . . . Largest Group . | . . . . . . . . Highest-Rated Group . | . . . . . . . . Highest-Rated Ally . | . . . . . . . . Total Orders . | . . . . . . . . Ally Attacks . | . . . . . . . . Total Damage . | . . . . . . . . Kills . | . . . . . . . . Allies Corrupted . | . . . . . . . . Allies Melted . | . . . . . . . . Intel | -11 -10 -10 -10 -9 -8 -8 -8 ------- Run | Yrd Mat Min Exi Min Mat Gar Mat Robot Analysis Total . | . . . . . . . . Derelict Logs Recovered 2 | . . 1 . 1 . . . Drone Launches . | . . . . . . . . Drone Recoveries . | . . . . . . . . Exploration | -11 -10 -10 -10 -9 -8 -8 -8 ------------- Run | Yrd Mat Min Exi Min Mat Gar Mat Turns Passed 6709 | 57 668 191 686 201 668 3777 461 Spaces Moved 3138 | 46 368 130 503 141 337 1449 164 Core 19 | 10 . . . . . 9 . Treads . | . . . . . . . . Legs 3110 | 36 368 130 503 141 337 1431 164 Wheels . | . . . . . . . . Hover . | . . . . . . . . Flight 9 | . . . . . . 9 . Fastest Speed 50 | 50 120 120 120 120 120 120 90 Average Speed 162 | 104 120 120 120 120 136 202 173 Slowest Speed 450 | 120 120 120 120 120 190 450 190 Overloaded Moves . | . . . . . . . . Propulsion Burnouts . | . . . . . . . . Robots Hopped . | . . . . . . . . Cave-ins Triggered . | . . . . . . . . Exploration Rate (%) 45 | 4 69 44 90 42 21 75 18 Regions Visited 7 Branch Regions 3 Pre-discovered Areas 1 | . . . . 1 . . . Known Exits Taken 1 | . . . . . 1 . . Unknown Exits Taken 5 | 1 1 1 1 1 . . . Scrap Searched . | . . . . . . . . Spaces Dug . | . . . . . . . . Terrain Destroyed 107 | . 9 . 2 . . 96 . Melee . | . . . . . . . . Projectile 2 | . . . 2 . . . . AOE 105 | . 9 . . . . 96 . Terrain Rammed . | . . . . . . . . Walls Destroyed . | . . . . . . . . Machines Disabled . | . . . . . . . . Actions | -11 -10 -10 -10 -9 -8 -8 -8 --------- Run | Yrd Mat Min Exi Min Mat Gar Mat Total 4357 | 52 536 164 551 156 496 2090 312 Wait 818 | 1 110 32 . 5 87 465 118 Move 3131 | 45 367 129 502 140 337 1447 164 Hop . | . . . . . . . . Pick Up 34 | . 10 1 6 . 8 7 2 Fast Attach 28 | 5 6 . 1 . 2 12 2 Attach 6 | . . . . . 3 3 . Detach . | . . . . . . . . Swap 50 | 1 6 . 6 . 16 14 7 Drop 39 | . 6 1 5 . 14 10 3 Fire 200 | . 30 1 19 9 26 100 15 Melee 4 | . . . . . . 4 . Ram . | . . . . . . . . Kick 7 | . 1 . . 2 3 . 1 Crush . | . . . . . . . . Escape Stasis 28 | . . . . . . 28 . Rewire 12 | . . . 12 . . . . Trap . | . . . . . . . . Miscellaneous . | . . . . . . . . Route ------- -11/Scrapyard -10/Materials (discovered 2 exits: [*Mat] / [*Min]) -10/Mines (discovered 2 exits: [*Mat] / *Exi) -10/Exiles -9/Mines (discovered 2 exits: *Mat x2) -8/Materials -8/Garrison (discovered 3 exits: *Mat x3) -8/Materials (discovered 1 exit: [*Fac]) History --------- Turn | Location | Event 10 | -11/Scrapyard | Discovered new exit (range 16) 58 | -11/Scrapyard | Entered Materials 272 | -10/Materials | Repaired Particle Gun 300 | -10/Materials | Repaired EM Pulse Gun 321 | -10/Materials | Build established: Mutant 327 | -10/Materials | Repaired Aluminum Leg 335 | -10/Materials | Discovered new exit (range 11) 690 | -10/Materials | Discovered new exit (range 14) 726 | -10/Materials | Entered Mines 759 | -10/Mines | Found a hidden stash of uninstalled traps 799 | -10/Mines | Discovered new exit (range 13) 848 | -10/Mines | YI-UF0 nonchalantly dropped a Grenade Launcher on the ground 881 | -10/Mines | Learned 2 Materials zone layouts 913 | -10/Mines | Deemed a non-threat by the Exiles lab entrance 913 | -10/Mines | Discovered new exit (range 5) 917 | -10/Mines | Entered Exiles 917 | -10/Exiles | Found Exiles lab destroyed 1592 | -10/Exiles | Discovered new exit (range 10) 1603 | -10/Exiles | Entered Mines 1635 | -9/Mines | Met a Derelict bent on vengeance 1646 | -9/Mines | Learned location of Zion (-7) 1786 | -9/Mines | Discovered new exit (range 9) 1797 | -9/Mines | Discovered new exit (range 6) 1804 | -9/Mines | Entered Materials 1804 | -8/Materials | Evolved 4 slots: Utility x4 2097 | -8/Materials | Build established: Infiltrator-Mutant 2399 | -8/Materials | Build established: Mutant 2472 | -8/Materials | Identified exit to Garrison 2472 | -8/Materials | Entered Garrison 2480 | -8/Garrison | Triggered checkpoint 2522 | -8/Garrison | Triggered checkpoint 2530 | -8/Garrison | Triggered checkpoint 2570 | -8/Garrison | Triggered checkpoint 2572 | -8/Garrison | Triggered checkpoint 3073 | -8/Garrison | Triggered checkpoint 3151 | -8/Garrison | Discovered new exit (range 15) 3176 | -8/Garrison | Installed Relay Interface Framework 3212 | -8/Garrison | Triggered checkpoint 3236 | -8/Garrison | Garrison Relay disabled 3333 | -8/Garrison | Core integrity fell below 50% 3336 | -8/Garrison | Triggered checkpoint 3355 | -8/Garrison | Lost 3 parts (1u2w) 3419 | -8/Garrison | Lost 3 parts (1p2n) 3656 | -8/Garrison | Garrison Relay disabled 3756 | -8/Garrison | Triggered checkpoint 3769 | -8/Garrison | Build established: Scavenger-Mutant 3824 | -8/Garrison | Discovered new exit (range 12) 4088 | -8/Garrison | Triggered checkpoint 4225 | -8/Garrison | Discovered new exit (range 9) 4468 | -8/Garrison | Build established: Mutant 4783 | -8/Garrison | Build established: Scavenger-Mutant 6249 | -8/Garrison | Entered Materials 6585 | -8/Materials | Repaired Mak. Cloaking Device 6597 | -8/Materials | Build established: Mutant 6624 | -8/Materials | Repaired Deuterium Engine 6649 | -8/Materials | First assault squad dispatched 6664 | -8/Materials | Garrison activated, responded to threat 6671 | -8/Materials | System corruption reached 10% 6675 | -8/Materials | Repaired Mak. Transmission Jammer 6685 | -8/Materials | Core integrity fell below 20% 6697 | -8/Materials | Discovered new exit (range 8) 6710 | -8/Materials | Destroyed by L-31 Rogue with Katana Last Messages --------------- 06683_ Imp. Medium Armor Plating destroyed. 06684_ System corrupted: Substantial component data lost. 06686_ Acquired Mak. Transmission Jammer. 06693_ R-06 Scavenger collects Weight Redist. System. 06694_ K-01 Serf collects debris. 06696_ VSS Leg destroyed. 06697_ EXIT=FOUND 06697_ R-06 Scavenger collects Gauss Rifle. 06699_ T6IGF8=MAX,/=84SDE&A 48SSIYAHLVRNB8LPSQ 06700_ R-06 Scavenger collects Faulty Hvy. Particle Gun. 06701_ K-01 Serf collects debris. 06703_ R-06 Scavenger collects Transport Network Coupler. 06704_ K-01 Serf collects debris. 06706_ Terminal disabled. 06706_ VSS Leg destroyed. 06706_ Critical hit (Burn: +37). 06706_ Targeting Computer destroyed. 06707_ Imp. Ion Engine severed. 06708_ K-01 Serf collects debris. 06709_ L-31 Rogue destroyed. Map ----- +----------------------------------------------------+ | ??????????????????????????????????????????? | | ??????????????????????????????????????????? | | ??????????????????????????????????????????? | | ??????????????????????????????????????????? | | ??????????????????????????????????????????? | | ??????????????????????????????????????????? | | ??????????????????????????????????????????? | | ??????????????????????????????????????????? | | ??????????????????????????????????????????? | | ??????????????????????????????????????????? | | ??????????????????????????????????????????? | | ?????????????????????#????????????????????? | | ???????????????????? #????????????????????? | | ???????????????????? #????????????????????? | | ???????????????????? #????????????????????? | | ???????????????????? #????????????????????? | | ???????????????????? #????????????????????? | | ??????????????????? #????????????????????? | | ??????????????????? u#????????????????????? | | ??????????????##### #????????????????????? | | ??????????????#"""# #????????????????????? | | ??????????????#"G"#t #????????????????????? | | ??????####+####" "# ####?????????????????? | | ??????# # ??????????????????? | | ??#???# < ! + ???????????????????? | | ??#%??# /@ #????????????????????? | | ?##+####### l* #????????????????????? | | ?# " #g/ = #????????????????????? | | ?# """ # #????????????????????? | | ?# """ *# g T" ###+###??????????????? | | ?# """ [[# """ ????????????? | | ?# ![%k r ????????????? | | ?# """ = # ????????????? | | ?# "R %=### ##"T"#####+####?????????????? | | ?# """ ! #?#%######?# #?????????????? | | ?# #?# #??????# """" #?????????????? | | ?############ #??????# """" #?????????????? | | ?????# ! # ######## """" #?????????????? | | ?????# + / #?????????????? | | ?????# """ # ######## % #?????????????? | | ?????# """ # #??????##+#####?????????????? | | ?????# """ + #???????# #?????????????????? | | ?????# ###???????# #?????????????????? | | ?????########?????????# ###???????????????? | | ??????????????######### # ########????????? | | ??????????????# "T" ## # #????????? | | ??????????????# # # #????????? | | ??????????????# """ # + #????????? | | ??????????????# """ + # """[ #????????? | | ??????????????# """ # # """ = #????????? | +----------------------------------------------------+ Best States ------------- Heat Dissipation 58 Energy Generation 14 Energy Capacity 275 Matter Stores 300 Matter Capacity 300 Sight Range 16 Terrain Scan Density 10 Jamming Range 14 Armor Coverage 225 Weapon Shielding 66 Evasion (%) 55 Targeting Accuracy 5 Target Analysis 5 Defensive Hacking 10 Relay Coupler Types 1 Relay Coupler Value 31 Item Schematics ----------------- Mak. Cloaking Device | -8/Materials | Scanalyzed Robot Schematics ------------------ None Fabricated ------------ Nothing Alien Tech Used ----------------- None Achievements -------------- None Challenges ------------ None Game ------ Seed BoreInsulatedInterrupter Manual? 0 Play Time 00:36:17 Cumulative 84.4 hours Start 2024.09.14 @ 16:37:18 End 2024.09.15 @ 17:44:06 Sessions 3 Manual Loads 0 Difficulty Rogue Special Mode None Game No. 147 Rogue 147 Adventurer 0 Explorer 0 Win Type - Total 0 Types 0/0/0/0/0/0/0/0/0 Lore% 45 Gallery% 48 Achievement% 39 Wizard Run 0 Options --------- Layout 0 ASCII 0 Keyboard 1 Movement Numpad Keybinds 0 Fullscreen 2 Font 18/SmallcapsGlow Map View 76x50 Zoom Use 0% Tactical HUD 1 Map Filters NONE Filters NONE Steam 1 RUN: 15f71b4f-cdbb-48e6-b1b1-e96869ec377d